[Event "1000GM Schev-G5 March 2024"]
[Site "Santa Clara"]
[Date "2024.03.11"]
[Round "5.4"]
[White "Bhatta, Rohit"]
[Black "Urbina Quiroz, Edwin"]
[Result "1-0"]
[ECO "E05"]
[WhiteElo "1952"]
[BlackElo "2047"]
[Annotator "RC"]
[PlyCount "89"]
[EventDate "2024.03.06"]
[EventType "schev"]
[EventCountry "USA"]
[SourceTitle "playchess.com"]
[Source "ChessBase"]
[SourceQuality "1"]
[TimeControl "5400+30"]

1. d4 {[%emt 0:07:41]} d5 {[%emt 0:00:06]} 2. c4 {[%emt 0:00:13]} e6 {[%emt 0:00:04]} 3. Nf3 {[%emt 0:00:20]} Nf6 {[%emt 0:00:04]} 4. g3 {[%emt 0:00:10]} Be7 {[%emt 0:00:04]} 5. Bg2 {[%emt 0:00:14]} O-O {[%emt 0:00:04]} 6. O-O {[%emt 0:00:07]} dxc4 {[%emt 0:00:07]} 7. Qc2 {[%emt 0:00:24]} a6 {[%emt 0:00:03]} 8. a4 {[%emt 0:00:25]} Bd7 {[%emt 0:00:05]} 9. Qxc4 {[%emt 0:00:24]} Bc6 {[%emt 0:00:04]} 10. Bf4 {[%emt 0:00:43]} a5 {[%emt 0:03:50]} 11. Nc3 {[%emt 0:00:31]} Na6 {[%emt 0:00:14]} 12. Rac1 {[%emt 0:00:51]} Bxf3 {[%emt 0:22:56]} 13. Bxf3 {[%emt 0:00:36]} c6 {[%emt 0:00:07]} 14. e4 {[%emt 0:02:54]} Nb4 {[%emt 0:00:49]} 15. Rfd1 {[%emt 0:02:26]} Rc8 {[%emt 0:01:34]} 16. Qe2 {[%emt 0:01:59]} Re8 {[%emt 0:03:37]} 17. h4 {[%emt 0:05:38]} Qb6 {[%emt 0:05:52]} 18. Be3 {[%emt 0:04:22]} Qc7 {[%emt 0:11:07]} 19. Bf4 {[%emt 0:22:21]} Qb6 {[%emt 0:00:55]} 20. Be3 {[%emt 0:02:22]} Qc7 {[%emt 0:00:18]} 21. Bf4 {[%emt 0:06:41]} Qd7 {[%emt 0:00:29]} 22. Qf1 {[%emt 0:04:02]} Red8 {[%emt 0:01:20]} 23. Qg2 {[%emt 0:06:57]} Qe8 {[%emt 0:00:23]} 24. g4 {[%emt 0:02:45]} Nd7 {[%emt 0:01:05]} 25. g5 {[%emt 0:01:15]} Nf8 {[%emt 0:01:00]} 26. h5 {[%emt 0:01:45]} Kh8 {[%emt 0:07:57]} 27. Qg3 {[%emt 0:05:05]} Rd7 {[%emt 0:01:14]} 28. Rd2 {[%emt 0:01:15]} Bd8 {[%emt 0:17:15]} 29. Nb5 {[%emt 0:02:58]} Be7 {[%emt 0:03:47]} 30. Nd6 {[%emt 0:02:10]} Bxd6 {[%emt 0:00:45]} 31. Bxd6 {[%emt 0:00:04]} Rcd8 {[%emt 0:02:01]} 32. Be5 {[%emt 0:04:56]} Kg8 {[%emt 0:00:14]} 33. Qf4 {[%emt 0:02:51]} Qe7 {[%emt 0:03:27]} 34. Bf6 {[%emt 0:00:41]} Qe8 {[%emt 0:01:44]} 35. Bxg7 {[%emt 0:01:45]} f5 {[%emt 0:00:16]} 36. gxf6 {[%emt 0:00:58]} e5 {[%emt 0:00:58]} 37. Qg3 {[%emt 0:05:57]} Ne6 {[%emt 0:00:55]} 38. Bh6+ {[%emt 0:00:51]} Kh8 {[%emt 0:00:37]} 39. Qxe5 {[%emt 0:01:14]} Qf7 {[%emt 0:00:00]} 40. d5 {[%emt 0:00:50]} Nc7 {[%emt 0:02:45]} 41. Bg7+ {[%emt 0:00:13]} Kg8 {[%emt 0:00:02]} 42. Bg4 {[%emt 0:00:35]} Re8 {[%emt 0:00:25]} 43. Qg5 {[%emt 0:00:52]} Rdd8 {[%emt 0:01:17]} 44. Bf5 {[%emt 0:00:20]} Re5 {[%emt 0:01:32]} 45. Bxh7+ {[%emt 0:00:17]} 1-0